Cogmind - Beta 10.2 *** ADVENTURER MODE // 2020.12.06 @ 17:17:20 Player: leiavoia Result: Destroyed by H-77 Assassin with Coil Gun Performance ------------- Evolutions (6) 3000 Regions Visited (12) 2400 Robots Destroyed (264) 1320 Value Destroyed (11620) 11620 Prototype IDs (20) 400 Alien Tech Used (0) 0 Bonus (2908) 2908 TOTAL SCORE: 21648 Bonus ------- High Alert Combat Kills 1516 Follower Combat Kills 1022 Network Hubs Disabled 200 Met R17 at Cetus 500 Friendly Fire -330 Cogmind --------- Core Integrity 0/1150 Matter 199/300 Energy 100/100 System Corruption 9% Temperature Cool (0) Movement Core (50) Location -4/Factory Parts ------- > --- POWER (2) -------- (None) > --- PROPULSION (4) --- (None) > --- UTILITY (8) ------ (None) > --- WEAPON (5) ------- (None) > --- INVENTORY (4) ---- Light Antimatter Reactor Advanced Heat Sink Advanced Heat Sink Large Storage Unit Peak State ------------ > --- POWER ------------ Antimatter Reactor Light Antimatter Reactor > --- PROPULSION ------- Centrium Heavy Treads Flexi-carbon Leg Flexi-carbon Leg > --- UTILITY ---------- Advanced Cooling System High-capacity Storage Unit High-capacity Storage Unit Advanced Signal Interpreter Targeting Computer Improved Transmission Jammer Layered Medium Armor Plating Improved Hacking Suite > --- WEAPON ----------- Proton Cannon Ion Burst Cannon Mass Driver Plasma Sword Plasma Sword > --- INVENTORY -------- Carbon-fiber Leg Carbon-fiber Leg Large Storage Unit High-capacity Storage Unit Energy Well High-capacity Matter Pod Improved Sensor Array Improved Sensor Array Hardened Heavy Armor Plating Improved Powered Armor Tractor Beam Plasma Rifle Improved Heavy Machine Gun KE Penetrator KE Penetrator Mass Driver Enhanced Gauss Cannon Scatter Rocket Array [Rating: 107] Favorites ----------- Power Improved Deuterium Engine Engine Improved Deuterium Engine Power Core Nuclear Core Reactor Light Antimatter Reactor Propulsion Flexi-carbon Leg Treads Centrium Heavy Treads Leg Flexi-carbon Leg Wheel Compact Wheel Utility High-capacity Storage Unit Device Improved Transmission Jammer Storage High-capacity Storage Unit Processor Targeting Computer Hackware Improved Hacking Suite Protection Centrium Medium Armor Plating Weapon Wave Gun Energy Gun Wave Gun Energy Cannon Proton Cannon Ballistic Gun KE Penetrator Ballistic Cannon Heavy Flak Cannon Launcher Precision Grenade Launcher Slashing Weapon Chainsword Build | -11 -10 -9 -9 -8 -7 -6 -6 -6 -6 -6 -5 -4 ------- Run | Scr Mat Mat Sto Mat Fac Fac Ext Cet Arc Hub Fac Fac Slots Evolved 12 | . . 2 . 2 2 2 . . . . 2 2 Power 1 | . . . . . . . . . . . . 1 Propulsion 2 | . . . . . . 1 . . . . 1 . Utility 6 | . . . . 2 1 1 . . . . 1 1 Weapon 3 | . . 2 . . 1 . . . . . . . Parts Attached 292 | 7 7 8 9 14 24 34 37 7 8 22 32 83 Power 25 | 1 2 . 1 1 2 2 3 . . 1 1 11 Engine 11 | 1 2 . 1 1 1 . 3 . . 1 1 . Core 7 | . . . . . 1 2 . . . . . 4 Reactor 7 | . . . . . . . . . . . . 7 Propulsion 54 | 2 . 2 . 2 3 10 11 1 . 2 3 18 Treads 8 | 1 . 1 . 1 . 1 . 1 . 2 1 . Leg 39 | . . . . . . 9 10 . . . 2 18 Wheel 7 | 1 . 1 . 1 3 . 1 . . . . . Hover . | . . . . . . . . . . . . . Flight . | . . . . . . . . . . . . . Utility 76 | 2 3 . . 6 8 8 3 1 1 11 12 21 Device 36 | . . . . 2 4 5 1 . . 6 8 10 Storage 10 | 2 3 . . 1 1 . . . . . 2 1 Processor 5 | . . . . . 1 2 . . . 2 . . Hackware 2 | . . . . . . . . . . . 1 1 Protection 23 | . . . . 3 2 1 2 1 1 3 1 9 Artifact . | . . . . . . . . . . . . . Weapon 137 | 2 2 6 8 5 11 14 20 5 7 8 16 33 Energy Gun 30 | 2 . 4 2 2 4 2 2 1 2 . 2 7 Energy Cannon 26 | . . . 1 . 1 5 3 . 3 5 2 6 Ballistic Gun 39 | . 2 2 4 2 3 1 6 2 1 2 3 11 Ballistic Cannon 14 | . . . . . . . 5 1 1 . 2 5 Launcher 13 | . . . . . 2 3 3 1 . 1 1 2 Special Weapon . | . . . . . . . . . . . . . Impact Weapon . | . . . . . . . . . . . . . Slashing Weapon 15 | . . . 1 1 1 3 1 . . . 6 2 Piercing Weapon . | . . . . . . . . . . . . . Special Melee Weapon . | . . . . . . . . . . . . . Unidentified Prototypes 16 | . . . 2 2 . 2 . 4 . 4 2 . Parts Lost 91 | . . 1 1 2 6 6 7 3 4 2 1 58 Power 7 | . . . . . . . . . . 1 . 6 Propulsion 19 | . . . . 1 1 1 . . . . 1 15 Utility 18 | . . . . . 2 1 2 . 1 . . 12 Weapon 47 | . . 1 1 1 3 4 5 3 3 1 . 25 Highest Loss Streak 20 | . . 1 1 1 4 3 4 2 4 1 1 20 Average Slot Usage (%) 94 | . 100 100 100 96 98 96 99 93 88 92 91 85 Engine 5 | . 14 11 11 9 4 . 4 6 6 6 5 1 Core 1 | . . . . . 2 6 1 . . . . 2 Treads 5 | . 14 11 11 9 1 . . 5 6 11 6 2 Leg 8 | . . . . . . 18 19 7 6 . 7 12 Wheel 3 | . 14 11 11 8 12 1 . . . . . . Device 7 | . . . . 12 9 11 8 6 1 10 12 8 Storage 15 | . 28 22 22 18 15 13 13 13 13 13 12 12 Processor 8 | . . . . . 7 13 13 13 13 13 11 9 Protection 2 | . . . . 3 4 . 4 6 8 1 1 3 Energy Gun 6 | . 3 14 12 8 13 4 4 1 11 12 3 2 Energy Cannon 3 | . . . . . 2 11 2 . 3 3 3 3 Ballistic Gun 14 | . 24 29 21 18 17 8 13 12 8 13 15 9 Ballistic Cannon 2 | . . . . . . . 9 13 6 1 . 3 Slashing Weapon 2 | . . . 9 9 2 3 1 . . . 2 4 Naked Turns 6 | . . . . . . . . . . . . 6 Heaviest Build 142 | 15 71 79 82 90 104 111 119 119 126 126 126 142 Greatest Support 160 | 20 20 16 16 20 26 60 60 80 80 108 160 90 Greatest Overweight (x) 28 | . 4 4 5 28 9 3 3 5 1 1 1 5 Average Overweight (x) 1 | . 2 4 4 6 4 1 1 1 1 . . 1 Largest Inventory Capacity 20 | 8 20 20 20 20 20 20 20 20 20 20 20 20 Average Capacity 19 | 6 14 20 20 20 20 20 20 20 20 20 20 19 Most Carried 20 | 8 15 20 20 20 20 20 20 20 19 20 20 20 Average Carried 18 | 4 10 18 19 19 19 19 19 19 17 19 19 17 Final Capacity 20 | 8 20 20 20 20 20 20 20 20 20 20 20 4 Final Carried 20 | 8 15 20 20 20 20 20 20 18 19 20 20 4 Class Distribution -------------------- 22% | Scavenger-Gunner 18% | Hauler-Skirmisher 17% | Scavenger-Skirmisher 12% | Hauler-Gunner 6% | Scavenger-Mutant 5% | Hauler-Mutant 4% | Mutant 4% | Commander-Gunner 3% | Scavenger-Tank Dominant Class ---------------- Mutant | -10/Materials Hauler-Gunner | -9/Materials Hauler-Gunner | -9/Storage Hauler-Skirmisher | -8/Materials Hauler-Skirmisher | -7/Factory Hauler-Skirmisher | -6/Factory Scavenger-Gunner | -6/Extension Scavenger-Gunner | -6/Cetus Scavenger-Gunner | -6/Archives Scavenger-Skirmisher | -6/Hub_04(d) Scavenger-Skirmisher | -5/Factory Scavenger-Skirmisher | -4/Factory Resources | -11 -10 -9 -9 -8 -7 -6 -6 -6 -6 -6 -5 -4 ----------- Run | Scr Mat Mat Sto Mat Fac Fac Ext Cet Arc Hub Fac Fac Matter Collected 7745 | 244 296 351 278 221 553 661 1092 654 298 578 702 1817 Remotely 150 | . . . . . . . . . . . . 150 Salvage Created 12066 | 57 216 451 984 782 748 1352 1137 701 361 1280 1016 2981 Parts 531 | 3 17 28 55 42 44 60 41 36 16 38 31 120 Haulers Intercepted 11 | . . . 3 2 . 2 . . . 3 1 . Recyclers Shooed 8 | . . . . . . 3 1 . . 1 1 2 Parts Field Recycled . | . . . . . . . . . . . . . Retrieved Matter . | . . . . . . . . . . . . . Parts Self-Destructed . | . . . . . . . . . . . . . Prevented . | . . . . . . . . . . . . . Kills | -11 -10 -9 -9 -8 -7 -6 -6 -6 -6 -6 -5 -4 ------- Run | Scr Mat Mat Sto Mat Fac Fac Ext Cet Arc Hub Fac Fac Combat Hostiles Destroyed 197 | . 6 10 12 11 17 21 21 19 4 10 15 51 Melee 5 | . . . . . . . . . . . . 5 Guns 118 | . 6 10 12 11 10 12 8 6 1 7 12 23 Cannons 49 | . . . . . 3 6 10 9 3 2 1 15 AOE 23 | . . . . . 4 3 2 4 . 1 2 7 Classes Destroyed 16 | 1 3 1 4 1 1 2 2 1 . . . . Worker 15 | . . . 2 . . 6 1 . . 4 1 1 Builder 5 | . . . 1 . 1 . 1 . . 1 . 1 Tunneler 2 | . . . . . . 1 . . . . . 1 Hauler 11 | . . . 3 2 . 2 . . . 3 1 . Recycler 7 | 1 . . 1 . 1 . . . . 2 1 1 Carrier 1 | . . . . . . . . 1 . . . . Operator 8 | . . . . . . . 1 . 4 . 1 2 Watcher 17 | . 2 1 1 1 . 4 . 2 . 4 1 1 Swarmer 39 | . 3 3 . . 4 3 2 12 . . . 12 Grunt 89 | . 3 3 6 9 7 12 12 . . 5 9 23 Brawler 2 | . . . 1 . . . 1 . . . . . Duelist 2 | . . . . 1 . . 1 . . . . . Sentry 33 | . . 4 6 1 4 3 2 . 4 3 1 5 Hunter 9 | . . . . . . 1 1 . . . . 7 Programmer 15 | . . . . . 2 2 . . . 2 5 4 Behemoth 2 | . . . . . . . 2 . . . . . Cetus Guard 7 | . . . . . . . . 7 . . . . Best Kill Streak 13 | 1 3 4 4 4 7 13 5 11 3 8 6 10 Combat Bots Only 10 | . 3 4 3 4 6 8 5 10 3 4 4 8 Max Kills in Single Turn 6 | 1 2 1 2 2 5 3 2 4 2 3 4 6 Gunslinging 2 | . 1 . 1 1 2 . . 1 . . . . Exploded 4 | . . . . . 2 2 1 3 . 1 2 4 Melee 1 | . . . . . . . . . . . . 1 Uniques/NPCs Destroyed 1 | . . . . . . . 1 . . . . . A7 (-6/Extension) Combat | -11 -10 -9 -9 -8 -7 -6 -6 -6 -6 -6 -5 -4 -------- Run | Scr Mat Mat Sto Mat Fac Fac Ext Cet Arc Hub Fac Fac Damage Taken 18499 | . 96 498 313 564 1033 1018 1878 1458 364 568 664 10045 Core 1887 | . 32 66 55 94 66 59 218 17 . 50 74 1156 Absorbed by Shields 174 | . . . . . . 6 168 . . . . . Reduced by Siege Mode 51 | . . . . . . . . 51 . . . . Core Remaining (%) 82 | 100 87 . 69 82 90 . . . . 59 92 . Volleys Fired 446 | 2 28 28 35 28 29 47 41 28 16 37 33 94 Largest 5 | 2 2 4 4 3 5 5 5 5 5 5 5 5 Hottest 408 | 100 70 141 144 111 252 285 254 248 408 315 328 288 Shots Fired 1571 | 4 56 111 108 79 108 172 167 104 54 139 147 322 Gun 1221 | 4 56 111 108 79 91 136 101 52 29 112 120 222 Cannon 317 | . . . . . 10 28 60 46 25 27 26 95 Launcher 33 | . . . . . 7 8 6 6 . . 1 5 Special . | . . . . . . . . . . . . . Kinetic 1045 | . 50 76 69 56 63 89 118 92 34 84 92 222 Thermal 320 | 4 6 12 8 1 20 62 34 6 20 44 33 70 Explosive 33 | . . . . . 7 8 6 6 . . 1 5 Electromagnetic 173 | . . 23 31 22 18 13 9 . . 11 21 25 Robot Hit Streak 65 | 3 11 15 18 50 25 26 19 23 21 25 49 65 Robot Miss Streak 6 | . 3 4 3 2 3 3 4 3 3 2 2 6 Penetration Max 1 | . . . . . . . 1 1 1 1 1 1 Secondary Targets 16 | . 1 . 2 2 2 1 . 1 . 2 1 4 Max Gunslinging Chain 2 | . 1 . 1 1 2 1 . 1 . 1 1 1 Shots Hit Robots 1133 | 3 39 71 84 66 66 121 120 77 32 102 109 243 Core Hits 677 | 2 15 22 35 32 44 94 97 47 33 58 52 146 Critical Hits 53 | . . 1 . 1 1 . 6 18 . . 6 20 Critical Kills 26 | . . . . 1 1 . 4 10 . . 2 8 Critical Parts Destroyed 24 | . . . . . . . 2 8 . . 4 10 Melee Attacks 91 | . . . 8 3 2 20 6 . . . 15 37 Impact . | . . . . . . . . . . . . . Slashing 91 | . . . 8 3 2 20 6 . . . 15 37 Piercing . | . . . . . . . . . . . . . Sneak Attacks 9 | . . . 3 . . . 1 . . . . 5 Combat Hostiles . | . . . . . . . . . . . . . Follow-up Attacks 2 | . . . . . . . . . . . . 2 Damage Inflicted 32021 | 36 290 759 1520 1123 1946 3604 3756 2429 1245 3095 3430 8788 Guns 16957 | 36 290 759 1124 1066 993 1838 1667 1078 512 1818 2086 3690 Cannons 7674 | . . . . . 352 872 1329 768 711 669 528 2445 Explosions 5560 | . . . 180 57 601 894 559 583 . 583 786 1317 Melee 1740 | . . . 216 . . . 188 . . . . 1336 Ramming 90 | . . . . . . . 13 . 22 25 30 . Kinetic 14438 | . 240 330 578 637 657 1130 2083 1692 689 1363 1354 3685 Thermal 8034 | 36 50 120 238 77 577 1560 787 154 534 905 1278 1718 Explosive 3769 | . . . . . 501 676 559 583 . . 396 1054 Electromagnetic 3950 | . . 309 488 409 211 238 126 . . 802 372 995 Impact . | . . . . . . . . . . . . . Slashing 1740 | . . . 216 . . . 188 . . . . 1336 Piercing . | . . . . . . . . . . . . . Highest Corruption 9 | . 1 . 1 1 1 2 2 2 2 2 2 9 Average Corruption 1 | . 1 . 1 1 1 2 2 2 2 2 1 2 Corruption Purged . | . . . . . . . . . . . . . Effects 73 | . 3 . . . 3 2 13 8 5 15 8 16 Message Errors 19 | . 1 . . . 1 . 4 2 2 4 1 4 Heat Flow Errors 8 | . . . . . . 1 2 . 2 1 . 2 Energy Discharges 13 | . 1 . . . . . 3 2 . 4 2 1 Data Loss (minor) 17 | . 1 . . . . 1 2 3 1 3 2 4 Targeting Errors 13 | . . . . . 2 . 2 1 . 2 2 4 Weapon Failures 3 | . . . . . . . . . . 1 1 1 Overload Shots 1 | . . . . . . . . . 1 . . . Overflow Damage 1075 | . . . 84 . 66 75 135 46 . 78 195 396 Projectiles 85 | . . . . . . . . 23 . 12 . 50 Explosions 458 | . . . . . 66 75 14 23 . 66 189 25 Melee 532 | . . . 84 . . . 121 . . . 6 321 Knockbacks 39 | . . . . . . . 19 2 5 5 . 8 Impact . | . . . . . . . . . . . . . Kinetic 38 | . . . . . . . 18 2 5 5 . 8 Secondary 1 | . . . . . . . 1 . . . . . Self-Inflicted Damage 434 | . . . 16 . 159 117 . . . 72 28 42 Shots 13 | . . . 1 . 5 3 . . . 1 1 2 Rammed 5 | . . . . . . . . . 1 3 1 . Targets Rammed 6 | . . . . . . . 1 . 1 3 1 . Kicked 1 | . . . . . . . 1 . . . . . Crushed . | . . . . . . . . . . . . . Highest Temperature 450 | 78 50 341 280 205 419 346 207 300 398 434 450 350 Average Temperature 111 | 43 18 126 53 69 167 127 49 106 114 149 131 107 Received Heat Transfer 4076 | . 42 180 150 423 375 371 534 99 81 171 180 1470 Effects 26 | . . . . . 3 7 . . 5 2 3 6 Shutdowns 3 | . . . . . 2 . . . . 1 . . Energy Bleed 4 | . . . . . . 1 . . . . 2 1 Interference 15 | . . . . . . 5 . . 4 1 . 5 Matter Decay 1 | . . . . . . . . . 1 . . . Short Circuit 2 | . . . . . 1 1 . . . . . . Damage (minor) 1 | . . . . . . . . . . . 1 . Siege Activations 1 | . . . . . . . . 1 . . . . Total Turns 35 | . . . . . . . . 35 . . . . Longest Duration 35 | . . . . . . . . 35 . . . . Robots Corrupted 3 | . . . . . . . . . . 2 . 1 Combat Hostiles 1 | . . . . . . . . . . . . 1 Parts Fried 16 | . . 2 1 . . . 1 . . 8 1 3 Impact Corruptions 2 | . . . . . . . . . . . 1 1 Robots Melted 1 | . . . . . . . 1 . . . . . Combat Hostiles 1 | . . . . . . . 1 . . . . . Parts Melted 14 | . . . 1 . . 4 1 . 1 2 2 3 Heat Transferred 11744 | 111 148 333 448 87 722 2299 1194 185 696 1345 1532 2644 Parts Sabotaged 7 | . . . . . . . . . . . . 7 Parts Stolen . | . . . . . . . . . . . . . Parts Stripped . | . . . . . . . . . . . . . Power Chain Reactions 6 | . . . 3 1 1 . . . . . 1 . Missiles Intercepted . | . . . . . . . . . . . . . Alert | -11 -10 -9 -9 -8 -7 -6 -6 -6 -6 -6 -5 -4 ------- Run | Scr Mat Mat Sto Mat Fac Fac Ext Cet Arc Hub Fac Fac Peak Influence 1167 | 5 149 354 387 318 498 597 786 450 339 408 440 1167 Initial 176 | . 2 53 71 72 33 125 162 176 151 40 172 61 Average 310 | 1 94 192 211 177 232 420 488 312 250 83 244 617 Maximum Alert Level 4 | . . 1 1 1 2 2 3 2 1 2 2 4 Low Security (%) 36 | 100 100 61 33 66 41 4 7 5 20 93 28 18 Level 1 36 | . . 38 66 33 50 41 23 70 79 . 64 10 Level 2 19 | . . . . . 8 53 50 24 . 6 6 21 Level 3 7 | . . . . . . . 18 . . . . 46 Level 4 . | . . . . . . . . . . . . 1 Level 5 . | . . . . . . . . . . . . . High Security . | . . . . . . . . . . . . . Max Security . | . . . . . . . . . . . . . Squads Dispatched 41 | . 1 . 2 1 7 5 7 . . 3 5 10 Investigation 8 | . 1 . 1 . 1 1 3 . . . . 1 Extermination 7 | . . . . . 2 1 . . . 1 2 1 Reinforcement 20 | . . . 1 1 1 2 4 . . 2 3 6 Assault 2 | . . . . . . . . . . . . 2 Garrison 4 | . . . . . 3 1 . . . . . . Intercept . | . . . . . . . . . . . . . Construction Impeded 6 | . . . . . 1 1 1 . . . 1 2 Haulers Reinforced 6 | . . . . . . 1 . . . 2 2 1 Stealth | -11 -10 -9 -9 -8 -7 -6 -6 -6 -6 -6 -5 -4 --------- Run | Scr Mat Mat Sto Mat Fac Fac Ext Cet Arc Hub Fac Fac Distress Signals 19 | . 2 1 2 3 . . 2 2 . 2 1 4 Communications Jammed 38 | . . . . . . . . . . 16 11 11 Distress Signals 36 | . . . . . . . . . . 15 10 11 Times Spotted 325 | . 11 13 16 22 19 32 45 25 20 16 18 88 Peak Tracking Total 10 | . 4 4 3 5 4 5 7 10 2 4 4 9 Tactical Retreats 24 | . 1 1 . . 2 1 5 . . 1 . 13 Traps | -11 -10 -9 -9 -8 -7 -6 -6 -6 -6 -6 -5 -4 ------- Run | Scr Mat Mat Sto Mat Fac Fac Ext Cet Arc Hub Fac Fac Traps Triggered 18 | . 2 1 2 1 1 1 6 . . 4 . . Indirectly 2 | . . . . . . . . . . 2 . . Trap Hack Attempts . | . . . . . . . . . . . . . Triggered . | . . . . . . . . . . . . . Disarmed 1 | . 1 . . . . . . . . . . . Reprogrammed . | . . . . . . . . . . . . . Reused . | . . . . . . . . . . . . . Traps Extracted . | . . . . . . . . . . . . . Installed . | . . . . . . . . . . . . . Triggered . | . . . . . . . . . . . . . Machines | -11 -10 -9 -9 -8 -7 -6 -6 -6 -6 -6 -5 -4 ---------- Run | Scr Mat Mat Sto Mat Fac Fac Ext Cet Arc Hub Fac Fac Machines Disabled 55 | . . . 1 3 1 6 2 3 7 11 7 14 Max in Single Turn 10 | . . . 1 1 1 2 1 1 2 10 2 4 Garrison Access 3 | . . . 1 . . 1 . . . . . 1 Network Hub 1 | . . . . . . . . . . 1 . . Machines Sabotaged . | . . . . . . . . . . . . . Garrisons Compromised . | . . . . . . . . . . . . . Overloaded Fab Kills . | . . . . . . . . . . . . . Fab Network Shutdowns . | . . . . . . . . . . . . . Hacking | -11 -10 -9 -9 -8 -7 -6 -6 -6 -6 -6 -5 -4 --------- Run | Scr Mat Mat Sto Mat Fac Fac Ext Cet Arc Hub Fac Fac Machines Accessed 57 | . 7 3 9 3 2 8 11 1 . 5 5 3 Terminals 44 | . 6 3 7 2 . 5 11 1 . 4 4 1 Fabricators 1 | . . . . . . . . . . . . 1 Repair Stations 1 | . . . . . . 1 . . . . . . Recycling Units 5 | . 1 . 1 1 1 1 . . . . . . Scanalyzers 1 | . . . . . . . . . . . 1 . Garrison Access 5 | . . . 1 . 1 1 . . . 1 . 1 Total Hacks 115 | . 16 9 13 6 3 16 19 7 . 8 11 7 Successful 78 | . 12 6 12 5 1 11 10 4 . 6 8 3 Failed 37 | . 4 3 1 1 2 5 9 3 . 2 3 4 Catastrophic 4 | . . . . . 2 . . . . 1 1 . Database Lockouts . | . . . . . . . . . . . . . Manual 23 | . 1 5 5 2 . 5 . . . . 4 1 Terminals 96 | . 14 9 11 5 . 11 19 7 . 7 9 4 Fabricators 2 | . . . . . . . . . . . . 2 Repair Stations 3 | . . . . . . 3 . . . . . . Recycling Units 6 | . 2 . 1 1 1 1 . . . . . . Scanalyzers 2 | . . . . . . . . . . . 2 . Garrison Access 6 | . . . 1 . 2 1 . . . 1 . 1 Terminal Hacks 49 | . 10 3 5 2 . 5 10 4 . 6 3 1 Record 12 | . . . . . . 2 1 4 . 5 . . Robot Analysis 1 | . . . 1 . . . . . . . . . Prototype ID Bank 4 | . 4 . . . . . . . . . . . Open Door 11 | . . . 2 . . . 9 . . . . . Level Access Points 1 | . . . . . . 1 . . . . . . Branch Access Points 6 | . 1 1 1 . . 1 . . . . 1 1 Scanalyzer Index 1 | . . . . . . . . . . . 1 . Unreport Threat 1 | . . . . 1 . . . . . . . . Locate Traps 1 | . . . . . . . . . . 1 . . Disarm Traps 1 | . 1 . . . . . . . . . . . Patrol Status 1 | . . . 1 . . . . . . . . . Transport Status 2 | . 2 . . . . . . . . . . . Hauler Manifests 2 | . 1 . . 1 . . . . . . . . Registered Components 1 | . . . . . . . . . . . 1 . Registered Prototypes 1 | . . 1 . . . . . . . . . . Zone Layout 3 | . 1 1 . . . 1 . . . . . . Fabricator Hacks 1 | . . . . . . . . . . . . 1 Build 1 | . . . . . . . . . . . . 1 Repair Station Hacks 2 | . . . . . . 2 . . . . . . Scan Component 1 | . . . . . . 1 . . . . . . Repair 1 | . . . . . . 1 . . . . . . Recycling Unit Hacks 4 | . 1 . 1 1 1 . . . . . . . Report Inventory 4 | . 1 . 1 1 1 . . . . . . . Scanalyzer 2 | . . . . . . . . . . . 2 . Insert Component 1 | . . . . . . . . . . . 1 . Analyze 1 | . . . . . . . . . . . 1 . Garrison Access Hacks 3 | . . . 1 . . 1 . . . . . 1 Seal Access 3 | . . . 1 . . 1 . . . . . 1 Unauthorized Hacks 17 | . 1 3 5 2 . 3 . . . . 3 . Terminals 16 | . . 3 5 2 . 3 . . . . 3 . Botnet 16 | . . 3 5 2 . 3 . . . . 3 . Fabricators . | . . . . . . . . . . . . . Repair Stations . | . . . . . . . . . . . . . Recycling Units 1 | . 1 . . . . . . . . . . . Tunnel 1 | . 1 . . . . . . . . . . . Scanalyzers . | . . . . . . . . . . . . . Garrison Access . | . . . . . . . . . . . . . Data Cores Recovered 1 | . . . . . . . . . . . 1 . Used . | . . . . . . . . . . . . . Hacking Detections 34 | . 3 1 3 3 1 5 9 1 . 3 3 2 Full Trace Events 7 | . . . 1 . 1 1 3 . . . . 1 Feedback Events 1 | . . . . . . . . . . . . 1 Corruption 1 | . . . . . . . . . . . . 1 Feedback Blocked . | . . . . . . . . . . . . . Robot Schematics Acquired . | . . . . . . . . . . . . . Robots Built . | . . . . . . . . . . . . . Matter . | . . . . . . . . . . . . . Time . | . . . . . . . . . . . . . Total Robot Build Rating . | . . . . . . . . . . . . . Part Schematics Acquired 1 | . . . . . . . . . . . 1 . Parts Built . | . . . . . . . . . . . . . Matter 278 | . . . . . . . . . . . . 278 Time 139 | . . . . . . . . . . . . 139 Total Part Build Rating . | . . . . . . . . . . . . . Parts Repaired 1 | . . . . . . 1 . . . . . . Time 80 | . . . . . . 80 . . . . . . Parts Recycled . | . . . . . . . . . . . . . Recycled Matter . | . . . . . . . . . . . . . Retrieved Matter . | . . . . . . . . . . . . . Retrieved Components . | . . . . . . . . . . . . . Parts Scanalyzed 1 | . . . . . . . . . . . 1 . Part Schematics Acquired 1 | . . . . . . . . . . . 1 . Parts Damaged . | . . . . . . . . . . . . . Bothacking | -11 -10 -9 -9 -8 -7 -6 -6 -6 -6 -6 -5 -4 ------------ Run | Scr Mat Mat Sto Mat Fac Fac Ext Cet Arc Hub Fac Fac Used RIF Installer . | . . . . . . . . . . . . . Robots Hacked . | . . . . . . . . . . . . . Non-combat . | . . . . . . . . . . . . . Combat . | . . . . . . . . . . . . . Robot Hacks Applied . | . . . . . . . . . . . . . Relay Couplers Released 6 | . . . . . . 3 . . . 3 . . Programmers 6 | . . . . . . 3 . . . 3 . . Robots Rewired 9 | . . . . . . . 9 . . . . . Allies Hacked . | . . . . . . . . . . . . . Hacks Repelled . | . . . . . . . . . . . . . Allies | -11 -10 -9 -9 -8 -7 -6 -6 -6 -6 -6 -5 -4 -------- Run | Scr Mat Mat Sto Mat Fac Fac Ext Cet Arc Hub Fac Fac Total Allies 33 | . . . 10 . . . 23 . . . . . Largest Group 10 | . . . 10 5 . . 8 5 . . . . Highest-Rated Group 241 | . . . 88 48 . . 241 150 . . . . Highest-Rated Ally 156 | . . . 16 16 . . 156 37 . . . . Total Orders 11 | . . . . 4 2 1 . 3 . 1 . . AID 3 | . . . . . . . . 3 . . . . EXPLORE 8 | . . . . 4 2 1 . . . 1 . . Ally Attacks 213 | . . . 25 41 . . 110 37 . . . . Total Damage 4508 | . . . 240 432 . . 3292 544 . . . . Kills 36 | . . . 4 7 . . 22 3 . . . . Allies Corrupted 1 | . . . . 1 . . . . . . . . Allies Melted . | . . . . . . . . . . . . . Intel | -11 -10 -9 -9 -8 -7 -6 -6 -6 -6 -6 -5 -4 ------- Run | Scr Mat Mat Sto Mat Fac Fac Ext Cet Arc Hub Fac Fac Robot Analysis Total 1 | . . . 1 . . . . . . . . . Derelict Logs Recovered . | . . . . . . . . . . . . . Drone Launches 10 | . . . . 4 2 2 . . . 2 . . Drone Recoveries 5 | . . . . 3 1 1 . . . . . . Exploration | -11 -10 -9 -9 -8 -7 -6 -6 -6 -6 -6 -5 -4 ------------- Run | Scr Mat Mat Sto Mat Fac Fac Ext Cet Arc Hub Fac Fac Turns Passed 10801 | 127 642 452 848 586 567 1506 1295 650 458 1132 1229 1309 Spaces Moved 5004 | 69 390 230 433 234 301 702 575 304 217 535 562 452 Core 14 | 1 . . . 1 . . . . . . . 12 Treads 1987 | 59 102 . . 8 . . . 272 217 535 562 232 Legs 1453 | . . . . . . 638 575 32 . . . 208 Wheels 1550 | 9 288 230 433 225 301 64 . . . . . . Hover . | . . . . . . . . . . . . . Flight . | . . . . . . . . . . . . . Fastest Speed 50 | 50 110 140 140 150 120 120 150 150 180 160 160 50 Average Speed 158 | 150 138 140 146 161 132 149 166 177 180 164 173 166 Slowest Speed 1450 | 160 160 140 150 1450 170 160 210 270 180 180 180 270 Overloaded Moves . | . . . . . . . . . . . . . Propulsion Burnouts . | . . . . . . . . . . . . . Robots Hopped . | . . . . . . . . . . . . . Cave-ins Triggered . | . . . . . . . . . . . . . Exploration Rate (%) 42 | 6 57 24 56 36 14 26 69 78 98 55 17 15 Regions Visited 12 Branch Regions 5 Pre-discovered Areas 1 | . 1 . . . . . . . . . . . Known Exits Taken 8 | . . 1 . . 1 1 1 1 1 1 1 . Unknown Exits Taken 4 | 1 1 . 1 1 . . . . . . . . Scrap Searched . | . . . . . . . . . . . . . Spaces Dug 64 | . . . 3 3 2 26 . . . 1 15 14 Terrain Destroyed 534 | . . . 17 7 13 88 17 60 4 166 43 119 Melee 57 | . . . 3 3 2 20 . . . . 15 14 Projectile 46 | . . . . . . 1 9 4 4 1 6 21 AOE 431 | . . . 14 4 11 67 8 56 . 165 22 84 Terrain Rammed . | . . . . . . . . . . . . . Walls Destroyed . | . . . . . . . . . . . . . Machines Disabled . | . . . . . . . . . . . . . Actions | -11 -10 -9 -9 -8 -7 -6 -6 -6 -6 -6 -5 -4 --------- Run | Scr Mat Mat Sto Mat Fac Fac Ext Cet Arc Hub Fac Fac Total 6727 | 85 450 307 556 377 406 1007 808 354 246 709 710 712 Wait 550 | . 7 22 48 83 22 171 34 5 1 98 40 19 Move 4992 | 68 389 229 432 233 300 701 574 303 216 534 561 452 Hop . | . . . . . . . . . . . . . Pick Up 121 | 8 10 12 11 5 10 14 8 4 3 5 12 19 Fast Attach 91 | 7 2 1 1 7 4 11 9 2 2 6 6 33 Attach 73 | . 1 3 1 3 7 10 7 3 3 1 5 29 Detach 9 | . 1 . . . 1 2 2 . 1 . 1 1 Swap 128 | . 4 4 7 4 13 13 21 2 3 15 21 21 Drop 132 | . 8 8 13 11 10 18 21 7 . 10 15 11 Fire 446 | 2 28 28 35 28 29 47 41 28 16 37 33 94 Melee 87 | . . . 8 3 2 20 6 . . . 15 33 Ram . | . . . . . . . . . . . . . Kick 1 | . . . . . . . 1 . . . . . Crush 5 | . . . . . . . . . 1 3 1 . Escape Stasis 33 | . . . . . 8 . 25 . . . . . Rewire 59 | . . . . . . . 59 . . . . . Trap . | . . . . . . . . . . . . . Miscellaneous . | . . . . . . . . . . . . . Route ------- -11/Scrapyard -10/Materials (discovered 4 exits: *Mat x2 / Min x2) -9/Materials (discovered 4 exits: Min x2 / *Sto x2) -9/Storage (discovered 2 exits: *Mat / Rec) -8/Materials -7/Factory -6/Factory (discovered 8 exits: Fac x4 / Low x2 / *Ext x2) -6/Extension (discovered 2 exits: *Fac / *Cet) -6/Cetus (discovered 3 exits: *Fac x2 / *Arc) -6/Archives (discovered 3 exits: *Fac / *Hub x2) -6/Hub_04(d) (discovered 2 exits: *Fac x2) -5/Factory (discovered 3 exits: *Fac / Upp x2) -4/Factory (discovered 2 exits: Upp x2) History --------- Turn | Location | Event 20 | -11/Scrapyard | Discovered new exit (range 16) 128 | -11/Scrapyard | Entered Materials 308 | -10/Materials | Build established: Mutant 316 | -10/Materials | Identified exit to Mines 364 | -10/Materials | Discovered new exit (range 10) 689 | -10/Materials | Discovered new exit (range 15) 769 | -10/Materials | Build established: Hauler-Mutant 770 | -10/Materials | Entered another Materials area 770 | -9/Materials | Evolved 2 slots: Weapon x2 881 | -9/Materials | Identified exit to Mines 881 | -9/Materials | Identified exit to Storage 1075 | -9/Materials | Build established: Hauler-Gunner 1222 | -9/Materials | Entered Storage 1637 | -9/Storage | Identified exit to Recycling 1733 | -9/Storage | Assisted by bots powering up and referring to "LRC-V3" 1961 | -9/Storage | Discovered new exit (range 15) 2002 | -9/Storage | Build established: Commander-Gunner 2070 | -9/Storage | Entered Materials 2070 | -8/Materials | Accompanied by 5 allies 2070 | -8/Materials | Evolved 2 slots: Utility x2 2515 | -8/Materials | Build established: Hauler-Skirmisher 2643 | -8/Materials | Discovered new exit (range 8) 2656 | -8/Materials | Entered Factory 2656 | -7/Factory | Evolved 2 slots: Utility x1, Weapon x1 3025 | -7/Factory | Lost 4 parts (1u3w) 3184 | -7/Factory | Discovered new exit (range 9) 3209 | -7/Factory | Identified exit to Factory 3223 | -7/Factory | Entered another Factory area 3223 | -6/Factory | Evolved 2 slots: Propulsion x1, Utility x1 3230 | -6/Factory | Identified exit to Factory 3456 | -6/Factory | Identified exit to Lower Caves 3456 | -6/Factory | Identified exit to Extension 3685 | -6/Factory | Garrison activated, responded to threat 3746 | -6/Factory | Destroyed 8 combat bots 3747 | -6/Factory | Lost 3 parts (1u2w) 3973 | -6/Factory | Repaired Ion Burst Cannon 4729 | -6/Factory | Entered Extension 4807 | -6/Extension | Rescued a captive Derelict 4893 | -6/Extension | Rescued a captive Derelict 4893 | -6/Extension | Rescued a captive Derelict 4946 | -6/Extension | Rescued a captive Derelict 4947 | -6/Extension | Rescued a captive Derelict 5009 | -6/Extension | Rescued A7 5050 | -6/Extension | Rescued a captive Derelict 5074 | -6/Extension | Rescued a captive Derelict 5100 | -6/Extension | Spotted B-75 Beast 5115 | -6/Extension | Spotted B-75 Beast 5133 | -6/Extension | Destroyed B-75 Beast 5144 | -6/Extension | Destroyed B-75 Beast 5154 | -6/Extension | Disrupted transfer network 5170 | -6/Extension | Lost 4 parts (1u3w) 5268 | -6/Extension | Allies destroyed A7 5271 | -6/Extension | Extracted ID and sensor layout for unrecognized location from A7's data core 5421 | -6/Extension | Build established: Scavenger-Gunner 5546 | -6/Extension | Rescued a captive Derelict 5547 | -6/Extension | Rescued a captive Derelict 5630 | -6/Extension | Rescued a captive Derelict 5638 | -6/Extension | Rescued a captive Derelict 5756 | -6/Extension | Rescued a captive Derelict 5757 | -6/Extension | Rescued a captive Derelict 5985 | -6/Extension | Discovered exit to Factory (range 10) 5986 | -6/Extension | Discovered new exit (range 6) 6017 | -6/Extension | Identified exit to Cetus 6024 | -6/Extension | Entered Cetus 6024 | -6/Cetus | Accompanied by 5 allies 6044 | -6/Cetus | Spotted Cetus Guard 6044 | -6/Cetus | Spotted Cetus Guard 6052 | -6/Cetus | Spotted Cetus Guard 6052 | -6/Cetus | Spotted Cetus Guard 6057 | -6/Cetus | Destroyed Cetus Guard 6057 | -6/Cetus | Destroyed Cetus Guard 6065 | -6/Cetus | Allies destroyed Cetus Guard 6072 | -6/Cetus | Destroyed Cetus Guard 6147 | -6/Cetus | Discovered exit to Factory (range 16) 6425 | -6/Cetus | Discovered new exit (range 16) 6452 | -6/Cetus | Identified exit to Archives 6488 | -6/Cetus | Spotted Cetus Guard 6489 | -6/Cetus | Spotted Cetus Guard 6490 | -6/Cetus | Destroyed Cetus Guard 6491 | -6/Cetus | Spotted Cetus Guard 6500 | -6/Cetus | Destroyed Cetus Guard 6501 | -6/Cetus | Spotted Cetus Guard 6523 | -6/Cetus | Destroyed Cetus Guard 6534 | -6/Cetus | Destroyed Cetus Guard 6558 | -6/Cetus | Destroyed 10 combat bots 6564 | -6/Cetus | Discovered exit to Factory (range 15) 6582 | -6/Cetus | Met Revision 17 6674 | -6/Cetus | Entered Archives 6783 | -6/Archives | Lost 4 parts (1u3w) 6788 | -6/Archives | Discovered new exit (range 16) 6804 | -6/Archives | Unable to access archive contents 6827 | -6/Archives | Unable to access archive contents 6845 | -6/Archives | Unable to access archive contents 6852 | -6/Archives | Discovered exit to Factory (range 15) 6951 | -6/Archives | Identified exit to Hub_04(d) 6989 | -6/Archives | Discovered exit to Hub_04(d) (range 13) 7038 | -6/Archives | Unable to access archive contents 7132 | -6/Archives | Entered Hub_04(d) 7344 | -6/Hub_04(d) | Discovered exit to Factory (range 11) 7492 | -6/Hub_04(d) | Found Prototype Launcher 7492 | -6/Hub_04(d) | Identified Scatter Rocket Array 7515 | -6/Hub_04(d) | Build established: Scavenger-Skirmisher 7742 | -6/Hub_04(d) | Spotted B-75 Beast 8189 | -6/Hub_04(d) | Network Hub disabled 8255 | -6/Hub_04(d) | Discovered exit to Factory (range 5) 8264 | -6/Hub_04(d) | Entered Factory 8264 | -5/Factory | Evolved 2 slots: Propulsion x1, Utility x1 8544 | -5/Factory | Found Imp. Powered Armor 9088 | -5/Factory | Spotted B-75 Beast 9171 | -5/Factory | Identified exit to Upper Caves 9454 | -5/Factory | Discovered new exit (range 6) 9463 | -5/Factory | Identified exit to Factory 9493 | -5/Factory | Entered another Factory area 9493 | -4/Factory | Evolved 2 slots: Power x1, Utility x1 9760 | -4/Factory | Identified exit to Upper Caves 9881 | -4/Factory | Destroyed 8 combat bots 9952 | -4/Factory | Destroyed 7 combat bots 9979 | -4/Factory | Lost 7 parts (2p1n2u2w) 10209 | -4/Factory | Lost 4 parts (1n1u2w) 10243 | -4/Factory | First assault squad dispatched 10548 | -4/Factory | Lost 10 parts (1p3n1u5w) 10707 | -4/Factory | Lost 8 parts (1p1n1u5w) 10742 | -4/Factory | Core integrity fell below 50% 10789 | -4/Factory | Core integrity fell below 20% 10792 | -4/Factory | Destroyed 7 combat bots 10796 | -4/Factory | Released all parts (7) 10802 | -4/Factory | Destroyed by H-77 Assassin with Coil Gun Last Messages --------------- 10786_ Flexi-carbon Leg destroyed. 10787_ Acquired 2 matter. 10788_ Penetrated by Slug. 10788_ R-10 Processor destroyed. 10788_ K-01 Serf collects debris. 10789_ Acquired 3 matter. 10791_ P-70 Sage resets G-67 Veteran, system corruption cleaned. 10791_ K-01 Serf collects debris. 10791_ Acquired 2 matter. 10795_ Penetrated by Slug. 10796_ Released Mic. Fission Core. 10796_ Released Hcp. Storage Unit. 10796_ Released Adv. Signal Interpreter. 10796_ Released Energy Well. 10796_ Released Myomer Leg. 10796_ Released Segregator. 10796_ Megafabricator disabled. 10797_ K-01 Serf collects debris. 10802_ Slug penetrates Pressure Siphon. 10802_ Slug penetrates P-70 Sage. Map ----- +----------------------------------------------------+ | ?????????????????????????????????????????????????? | | ?????????????????????????????????????????????????? | | ?????????????????????????????????????????????????? | | ?????????????????????????????????????????????????? | | ?????????????????????????????????????????????????? | | ?????????????????????????????????????????????????? | | ?????????????????????????????????????????????????? | | ?????????????????????????????????????????????????? | | ?????????????????????????????????????????????????? | | ?????????????????????????????????????????????????? | | ?????????????????????????????????????????????????? | | ?????????????????????????????????????????????????? | | ??????????????????? ??????????????????????????? | | ?????????????????# ?????????????????????????? | | ?????????????????+ ?????????????????????????? | | ?????????????????# ?????????????????????????? | | ?????????????????# ?????????????????????????? | | ?????????????????# ?????????????????????????? | | ?????????????????# #?????????????????????????? | | ?????????????#??## #?????????????????????????? | | ?????????????? #???????????#?????????????? | | ?????????????? #????????? #?????????????? | | ?????????????? """ #??????? #?????????????? | | ?????????????"""" """ #????? #?????????????? | | ?????????????"""" " #### ! #?????????????? | | ?????????????"""" "F" @/ #?????????????? | | ???????????"""""" """ # #?????????????? | | ???????????"""""" #?? #?????????????? | | ?????? """""" " #????] #?????????????? | | ????? #?????? #?????????????? | | ????? % #????????#?????????????? | | ????? #??????#???????????????? | | ??????#+########## #????? #???????????????? | | ?????????????????# ###### #???????????????? | | ?????????????????# /! #???????????????? | | ?????????????????# !!!%p!=*%% #???????????????? | | ????????????????# /gg""%"=%%"" #???????????????? | | ???????????????# !gg%%"%%%"%% #???????????????? | | "???????????????# =% *%%!%%%%% #???????????????? | | """ "???????????### %%!=%%!=%=% #???????????????? | | """ "?????????????# ""h%]%%%% #???????????????? | | ??????????????# "%%%%%%%" #???????????????? | | =????????????????# %%%"%!"""" #???????????????? | | #########??????????# |= #???????????????? | | #??????????# #???????????????? | | #??????????# ######## #???????????????? | | #??????????# #??????# #???????????????? | | = #????????### ###????# #???????????????? | | #????????# #?????+####???????????????? | | ! =########## ##????????????????????????? | +----------------------------------------------------+ Best States ------------- Heat Dissipation 81 Energy Generation 41 Energy Capacity 790 Matter Stores 300 Matter Capacity 300 Sight Range 16 Robot Scan Range 16 Terrain Scan Density 10 Jamming Range 12 Armor Coverage 625 Resistance: KI 50 Resistance: TH 20 Resistance: EX 20 Resistance: EM 20 Resistance: I 20 Resistance: S 20 Resistance: P 20 Power Shielding 66 Evasion (%) 50 Targeting Accuracy 5 Core Analysis 6 Recoil Reduction 4 Offensive Hacking 22 Defensive Hacking 12 Item Schematics ----------------- Ion Burst Cannon | -5/Factory | Scanalyzed Robot Schematics ------------------ None Fabricated ------------ Nothing Alien Tech Used ----------------- None Achievements -------------- More Dakka Please Preemptive Strike Challenges ------------ None Game ------ Seed AluminumExplosiveScanner Manual? 0 Play Time 03:24:38 Cumulative 147.8 hours Start 2020.12.06 @ 13:14:04 End 2020.12.06 @ 17:17:20 Sessions 3 Manual Loads 0 Difficulty Adventurer Special Mode None Game No. 20 Rogue 0 Adventurer 20 Explorer 0 Win Type - Total 5 Types 5/0/0/0/0/0/0/0/0 Lore% 33 Gallery% 58 Achievement% 42 Wizard Run 0 Options --------- ASCII 0 Keyboard 0 Movement Arrows Keybinds 0 Fullscreen 1 Font 20/Terminus Map View 66x50 Tactical HUD 1 Map Filters NONE Filters NONE Steam 1 RUN: e80b84de-7548-46c5-8d66-aedc977a9512